Cogmind - Beta 10.2 @@@ ROGUE MODE // 2020.11.03 @ 17:55:13 // Halloween2020/ForbiddenLore Player: Trione Result: Destroyed by G-47 Trooper with Particle Gun Performance ------------- Evolutions (0) 0 Regions Visited (2) 400 Robots Destroyed (16) 80 Value Destroyed (312) 312 Prototype IDs (0) 0 Alien Tech Used (0) 0 Bonus (0) 0 TOTAL SCORE: 792 Bonus ------- None Cogmind --------- Core Integrity 0/250 Matter 300/300 Energy 100/100 System Corruption 0% Temperature Cool (9) Movement Core (350) Ox6 Location -10/Mines Parts ------- > --- POWER (1) -------- (None) > --- PROPULSION (2) --- (None) > --- UTILITY (2) ------ Improved Heat Sink Large Storage Unit > --- WEAPON (2) ------- Mining Claw Mining Claw > --- INVENTORY (10) --- Light Nuclear Core Aluminum Leg Compact Wheel Large Storage Unit EM Pulse Gun EM Pulse Gun Small Laser Small Laser Light Assault Rifle Mining Claw Peak State ------------ > --- POWER ------------ Light Nuclear Core > --- PROPULSION ------- Aluminum Leg Wheel > --- UTILITY ---------- Improved Heat Sink Improved Heat Sink > --- WEAPON ----------- EM Pulse Gun Mining Claw > --- INVENTORY -------- Light Nuclear Core Light Treads EM Pulse Gun Light Assault Rifle [Rating: 13] Favorites ----------- Power Ion Engine Engine Ion Engine Power Core Light Nuclear Core Propulsion Compact Wheel Treads Light Treads Leg Aluminum Leg Wheel Compact Wheel Utility Improved Heat Sink Device Improved Heat Sink Storage Large Storage Unit Protection Light Armor Plating Weapon Mining Claw Energy Gun EM Pulse Gun Ballistic Gun Light Assault Rifle Slashing Weapon Mining Claw Build | -11 -10 -10 ------- Run | Scr Mat Min Slots Evolved . | . . . Power . | . . . Propulsion . | . . . Utility . | . . . Weapon . | . . . Parts Attached 23 | 5 16 2 Power 3 | 1 1 1 Engine 2 | 1 . 1 Core 1 | . 1 . Reactor . | . . . Propulsion 10 | 2 7 1 Treads 2 | . 1 1 Leg 1 | . 1 . Wheel 7 | 2 5 . Hover . | . . . Flight . | . . . Utility 4 | . 4 . Device 2 | . 2 . Storage 1 | . 1 . Processor . | . . . Hackware . | . . . Protection 1 | . 1 . Artifact . | . . . Weapon 6 | 2 4 . Energy Gun 3 | 1 2 . Energy Cannon . | . . . Ballistic Gun 1 | 1 . . Ballistic Cannon . | . . . Launcher . | . . . Special Weapon . | . . . Impact Weapon . | . . . Slashing Weapon 2 | . 2 . Piercing Weapon . | . . . Special Melee Weapon . | . . . Unidentified Prototypes . | . . . Parts Lost 6 | . 3 3 Power 2 | . 1 1 Propulsion 3 | . 1 2 Utility 1 | . 1 . Weapon . | . . . Highest Loss Streak 3 | . 2 3 Average Slot Usage (%) 95 | . 94 98 Engine 8 | . 7 12 Core 4 | . 5 . Leg 3 | . 3 . Wheel 23 | . 23 26 Device 14 | . 14 14 Storage 5 | . 3 14 Protection 4 | . 5 . Energy Gun 10 | . 13 . Ballistic Gun 1 | . 2 . Slashing Weapon 15 | . 11 28 Naked Turns . | . . . Heaviest Build 26 | 7 26 26 Greatest Support 32 | 32 32 32 Greatest Overweight (x) 1 | . 1 . Average Overweight (x) . | . . . Largest Inventory Capacity 10 | 4 10 10 Average Capacity 6 | 4 5 10 Most Carried 10 | 4 10 10 Average Carried 5 | 1 4 10 Final Capacity 10 | 4 10 10 Final Carried 10 | 4 10 10 Class Distribution -------------------- 92% | Mutant 7% | Scavenger-Mutant Dominant Class ---------------- Mutant | -10/Materials Mutant | -10/Mines Resources | -11 -10 -10 ----------- Run | Scr Mat Min Matter Collected 435 | 232 193 10 Remotely . | . . . Salvage Created 620 | 60 560 . Parts 35 | 4 31 . Haulers Intercepted 2 | . 2 . Recyclers Shooed 2 | . 2 . Parts Field Recycled . | . . . Retrieved Matter . | . . . Parts Self-Destructed . | . . . Prevented . | . . . Kills | -11 -10 -10 ------- Run | Scr Mat Min Combat Hostiles Destroyed 6 | . 6 . Melee 4 | . 4 . Guns 2 | . 2 . Classes Destroyed 8 | 1 7 . Worker 1 | . 1 . Builder 2 | . 2 . Hauler 2 | . 2 . Recycler 2 | 1 1 . Mechanic 1 | . 1 . Operator 1 | . 1 . Watcher 1 | . 1 . Grunt 6 | . 6 . Best Kill Streak 2 | 1 2 . Combat Bots Only 2 | . 2 . Max Kills in Single Turn 1 | 1 1 . Gunslinging . | . . . Exploded . | . . . Melee 1 | . 1 . Uniques/NPCs Destroyed . | . . . Combat | -11 -10 -10 -------- Run | Scr Mat Min Damage Taken 913 | . 421 492 Core 263 | . 88 175 Absorbed by Shields . | . . . Core Remaining (%) 100 | 100 . . Volleys Fired 24 | 3 21 . Largest 2 | 2 2 . Hottest 80 | 60 80 . Shots Fired 43 | 6 37 . Gun 43 | 6 37 . Cannon . | . . . Launcher . | . . . Special . | . . . Kinetic 15 | 3 12 . Thermal 15 | 3 12 . Explosive . | . . . Electromagnetic 13 | . 13 . Robot Hit Streak 14 | 3 14 . Robot Miss Streak 2 | 1 2 . Penetration Max . | . . . Secondary Targets . | . . . Shots Hit Robots 58 | 4 54 . Core Hits 26 | 2 23 1 Critical Hits 1 | . 1 . Critical Kills . | . . . Critical Parts Destroyed 1 | . 1 . Melee Attacks 51 | . 49 2 Impact . | . . . Slashing 51 | . 49 2 Piercing . | . . . Sneak Attacks 9 | . 9 . Combat Hostiles . | . . . Follow-up Attacks 1 | . 1 . Damage Inflicted 1475 | 48 1415 12 Guns 376 | 48 328 . Cannons . | . . . Explosions 36 | . 36 . Melee 1051 | . 1051 . Ramming 12 | . . 12 Kinetic 87 | 15 72 . Thermal 167 | 33 134 . Explosive . | . . . Electromagnetic 158 | . 158 . Impact . | . . . Slashing 1051 | . 1051 . Piercing . | . . . Highest Corruption . | . . . Average Corruption . | . . . Corruption Purged . | . . . Overload Shots . | . . . Overflow Damage 221 | . 221 . Projectiles . | . . . Explosions . | . . . Melee 221 | . 221 . Knockbacks . | . . . Impact . | . . . Kinetic . | . . . Secondary . | . . . Self-Inflicted Damage . | . . . Shots . | . . . Rammed 11 | . . 11 Targets Rammed 11 | . . 11 Kicked . | . . . Crushed . | . . . Highest Temperature 210 | 20 210 . Average Temperature 102 | 15 116 . Received Heat Transfer 384 | . 240 144 Siege Activations . | . . . Robots Corrupted . | . . . Combat Hostiles . | . . . Parts Fried . | . . . Impact Corruptions . | . . . Robots Melted . | . . . Combat Hostiles . | . . . Parts Melted 2 | . 2 . Heat Transferred 350 | 75 275 . Parts Sabotaged . | . . . Parts Stolen . | . . . Parts Stripped . | . . . Power Chain Reactions 1 | . 1 . Missiles Intercepted . | . . . Alert | -11 -10 -10 ------- Run | Scr Mat Min Peak Influence 207 | 5 207 60 Initial 30 | . 3 30 Average 89 | 1 110 35 Maximum Alert Level 1 | . 1 . Low Security (%) 99 | 100 98 100 Level 1 . | . 1 . Level 2 . | . . . Level 3 . | . . . Level 4 . | . . . Level 5 . | . . . High Security . | . . . Max Security . | . . . Squads Dispatched 2 | . 2 . Investigation 1 | . 1 . Extermination . | . . . Reinforcement 1 | . 1 . Assault . | . . . Garrison . | . . . Intercept . | . . . Construction Impeded . | . . . Haulers Reinforced . | . . . Stealth | -11 -10 -10 --------- Run | Scr Mat Min Distress Signals 4 | . 4 . Communications Jammed . | . . . Distress Signals . | . . . Times Spotted 29 | . 22 7 Peak Tracking Total 5 | . 4 5 Tactical Retreats 8 | . 7 1 Traps | -11 -10 -10 ------- Run | Scr Mat Min Traps Triggered . | . . . Indirectly . | . . . Trap Hack Attempts . | . . . Triggered . | . . . Disarmed . | . . . Reprogrammed . | . . . Reused . | . . . Traps Extracted . | . . . Installed . | . . . Triggered . | . . . Machines | -11 -10 -10 ---------- Run | Scr Mat Min Machines Disabled 1 | . 1 . Max in Single Turn 1 | . 1 . Machines Sabotaged . | . . . Garrisons Compromised . | . . . Overloaded Fab Kills . | . . . Fab Network Shutdowns . | . . . Hacking | -11 -10 -10 --------- Run | Scr Mat Min Machines Accessed 7 | . 7 . Terminals 6 | . 6 . Fabricators . | . . . Repair Stations . | . . . Recycling Units 1 | . 1 . Scanalyzers . | . . . Garrison Access . | . . . Total Hacks 13 | . 13 . Successful 5 | . 5 . Failed 8 | . 8 . Catastrophic 2 | . 2 . Database Lockouts . | . . . Manual 9 | . 9 . Terminals 11 | . 11 . Fabricators . | . . . Repair Stations . | . . . Recycling Units 2 | . 2 . Scanalyzers . | . . . Garrison Access . | . . . Terminal Hacks 2 | . 2 . Part Schematic 2 | . 2 . Fabricator Hacks . | . . . Repair Station Hacks . | . . . Recycling Unit Hacks . | . . . Scanalyzer . | . . . Garrison Access Hacks . | . . . Unauthorized Hacks 3 | . 3 . Terminals 3 | . 3 . Botnet 3 | . 3 . Fabricators . | . . . Repair Stations . | . . . Recycling Units . | . . . Scanalyzers . | . . . Garrison Access . | . . . Data Cores Recovered . | . . . Used . | . . . Hacking Detections 6 | . 6 . Full Trace Events 1 | . 1 . Feedback Events . | . . . Feedback Blocked . | . . . Robot Schematics Acquired . | . . . Robots Built . | . . . Matter . | . . . Time . | . . . Total Robot Build Rating . | . . . Part Schematics Acquired 2 | . 2 . Parts Built . | . . . Matter . | . . . Time . | . . . Total Part Build Rating . | . . . Parts Repaired . | . . . Time . | . . . Parts Recycled . | . . . Recycled Matter . | . . . Retrieved Matter . | . . . Retrieved Components . | . . . Parts Scanalyzed . | . . . Part Schematics Acquired . | . . . Parts Damaged . | . . . Bothacking | -11 -10 -10 ------------ Run | Scr Mat Min Used RIF Installer . | . . . Robots Hacked . | . . . Non-combat . | . . . Combat . | . . . Robot Hacks Applied . | . . . Relay Couplers Released . | . . . Robots Rewired . | . . . Allies Hacked . | . . . Hacks Repelled . | . . . Allies | -11 -10 -10 -------- Run | Scr Mat Min Total Allies . | . . . Largest Group . | . . . Highest-Rated Group . | . . . Highest-Rated Ally . | . . . Total Orders . | . . . Ally Attacks . | . . . Total Damage . | . . . Kills . | . . . Allies Corrupted . | . . . Allies Melted . | . . . Intel | -11 -10 -10 ------- Run | Scr Mat Min Robot Analysis Total . | . . . Derelict Logs Recovered 1 | . . 1 Drone Launches . | . . . Drone Recoveries . | . . . Exploration | -11 -10 -10 ------------- Run | Scr Mat Min Turns Passed 1205 | 67 899 239 Spaces Moved 843 | 50 592 201 Core 4 | 4 . . Treads . | . . . Legs 1 | . 1 . Wheels 838 | 46 591 201 Hover . | . . . Flight . | . . . Fastest Speed 50 | 50 80 100 Average Speed 99 | 96 98 100 Slowest Speed 150 | 100 150 100 Overloaded Moves . | . . . Propulsion Burnouts . | . . . Robots Hopped . | . . . Cave-ins Triggered . | . . . Exploration Rate (%) 38 | 4 82 30 Regions Visited 2 Branch Regions 1 Pre-discovered Areas . | . . . Known Exits Taken . | . . . Unknown Exits Taken 2 | 1 1 . Scrap Searched 1 | . . 1 Spaces Dug 2 | . 2 . Terrain Destroyed 5 | . 5 . Melee 2 | . 2 . Projectile . | . . . AOE 3 | . 3 . Terrain Rammed . | . . . Walls Destroyed . | . . . Machines Disabled . | . . . Actions | -11 -10 -10 --------- Run | Scr Mat Min Total 1055 | 61 770 224 Wait 84 | . 78 6 Move 841 | 49 591 201 Hop . | . . . Pick Up 14 | 4 9 1 Fast Attach 11 | 5 6 . Attach . | . . . Detach . | . . . Swap 12 | . 10 2 Drop 8 | . 7 1 Fire 24 | 3 21 . Melee 50 | . 48 2 Ram 2 | . . 2 Kick . | . . . Crush 9 | . . 9 Escape Stasis . | . . . Rewire . | . . . Trap . | . . . Miscellaneous . | . . . Route ------- -11/Scrapyard -10/Materials (discovered 4 exits: [*Mat x3] / [*Min]) -10/Mines (discovered 1 exit: [*Mat]) History --------- Turn | Location | Event 30 | -11/Scrapyard | Discovered new exit (range 15) 68 | -11/Scrapyard | Entered Materials 309 | -10/Materials | Build established: Mutant 340 | -10/Materials | Discovered new exit (range 16) 626 | -10/Materials | Discovered new exit (range 16) 743 | -10/Materials | Discovered new exit (range 16) 802 | -10/Materials | Discovered new exit (range 16) 967 | -10/Materials | Entered Mines 1006 | -10/Mines | Met a Derelict bent on vengeance 1008 | -10/Mines | Discovered new exit (range 9) 1011 | -10/Mines | Learned location of 1 exit from Materials 1191 | -10/Mines | Core integrity fell below 50% 1196 | -10/Mines | Core integrity fell below 20% 1206 | -10/Mines | Destroyed by G-47 Trooper with Particle Gun Last Messages --------------- 00974_ Dropped Lgt. Nuclear Core. 00974_ Acquired Mining Claw. 01008_ EXIT=FOUND 01011_ Acquired derelict log, extracted data. Data stored: Materials exits (x1). 01013_ Extracted 10 matter. 01016_ Searching scrap... 01016_ Found Power Shielding. 01016_ Found Hcp. Storage Unit. 01016_ Found Propulsion Shielding. 01016_ Found 32 Matter. 01097_ K-01 Serf collects debris. 01184_ Ion Engine destroyed. 01185_ Slammed into S-10 Pest. 01186_ S-10 Pest destroyed. 01187_ Slammed into S-10 Pest. 01199_ Com. Wheel destroyed. 01199_ Slammed into S-10 Pest. 01200_ Lgt. Treads destroyed. 01201_ Slammed into S-10 Pest. Map ----- +----------------------------------------------------+ | ????????????????????????????????????????? | | ????????????????????????????????????????? | | ????????????????????????????????????????? | | ????????????????????????????????????????? | | ????????????????????????????????????????? | | ????????????????????????????????????????? | | ????????????????????????????????????????? | | ????????????????????????????????????????? | | ????????????????????????????????????????? | | #???????????????????????????????????????? | | #???????????????????????????????????????? | | #????????#######????????????????????????? | | ##???????# ?????????????????????????? | | ##??????# ??????????????????????????? | | ##?????# #???????????????????????????? | | ##????# #???????????????????????????? | | ##???# #???????????????????????????? | | ##??# #???????????????????????????? | | #### ##??????????????????????????? | | ## ##?????????????????????????? | | ### ###?????????????####??????? | | ??## #####????????## ##?????? | | ???# ########## ##????? | | ???## ## # %% !%## #????? | | ????### #### #%!!!!!# #????? | | ??????## ##??# #%!%@ #?????? | | ???????# #???# # !%%s % ##?????? | | ???????## #???# # !%s = g######??? | | ????????#####???# % g #??? | | ????????????????# ##### #??? | | ????????????????## ##?# < ## #??? | | ?????????????????# """ #?## ### #??? | | ????????????????## """ #??######?# #??? | | ???????????????## """ ##????????## #??? | | ???????????????# #???????### #??? | | ???????????????# # #??????## [#??? | | ???????????????# # #?????## #??? | | ???????????????## ## ###???# [ ##?? | | ????????????????###?# #???# #?? | | ????????????????????# #???## ##? | | ????????????????????### #????### #? | | ?????????????????????## ####???## #? | | ????????????????????## ##??## ##? | | ????????????????????# #### #?? | | ????????????????????# ##? | | ????????????????????# #? | | ????????????????????## #? | | ?????????????????????## #? | | ??????????????????????# ### #? | | ??????????????????????## #?# #? | +----------------------------------------------------+ Best States ------------- Heat Dissipation 53 Energy Generation 14 Energy Capacity 250 Matter Stores 300 Matter Capacity 300 Sight Range 16 Terrain Scan Density 10 Armor Coverage 150 Evasion (%) 44 Recoil Reduction 1 Item Schematics ----------------- Hcp. Storage Unit | -10/Materials | Hacked Signal Interpreter | -10/Materials | Hacked Robot Schematics ------------------ None Fabricated ------------ Nothing Alien Tech Used ----------------- None Achievements -------------- None Challenges ------------ None Game ------ Seed SegregatorCooledPrototype Manual? 0 Play Time 00:10:31 Cumulative 1173.9 hours Start 2020.11.03 @ 17:45:33 End 2020.11.03 @ 17:55:13 Sessions 1 Manual Loads 0 Difficulty Rogue Special Mode Halloween2020/ForbiddenLore Game No. 432 Rogue 432 Adventurer 0 Explorer 0 Win Type - Total 26 Types 13/2/7/0/0/0/4/0/0 Lore% 96 Gallery% 96 Achievement% 85 Wizard Run 0 Options --------- ASCII 0 Keyboard 0 Movement Vi Keybinds 0 Fullscreen 0 Font 12/Crisp Map View 76x50 Tactical HUD 1 Map Filters NONE Filters NONE Steam 1 RUN: 1105bfbd-1726-4add-a977-480dbac3e454